[Event "World Junior Chess Championship U20 2022"]
[White "Di Benedetto, Edoardo"]
[Black "Blohberger, Felix"]
[WhiteFideId "875740"]
[BlackFideId "1632051"]
[WhiteElo "2396"]
[BlackElo "2493"]
[Result "0-1"]
[Round "05"]
[TimeControl "5400+30"]
[Date "2022.10.15"]
[WhiteClock "0:25:02"]
[BlackClock "0:18:48"]

1. d4 {[%clk 1:30:57]}  d5 {[%clk 1:30:56]} 2. c4 {[%clk 1:31:17]}  e6 {[%clk 1:31:21]} 3. Nf3 {[%clk 1:25:30]}  c6 {[%clk 1:31:00]} 4. e3 {[%clk 1:25:13]}  Nf6 {[%clk 1:31:22]} 5. Nc3 {[%clk 1:25:36]}  a6 {[%clk 1:31:40]} 6. b3 {[%clk 1:23:31]}  Bb4 {[%clk 1:32:02]} 7. Bd2 {[%clk 1:23:55]}  Nbd7 {[%clk 1:32:01]} 8. Bd3 {[%clk 1:13:10]}  O-O {[%clk 1:32:18]} 9. O-O {[%clk 1:12:51]}  Bd6 {[%clk 1:32:45]} 10. h3 {[%clk 1:04:48]}  e5 {[%clk 1:30:58]} 11. cxd5 {[%clk 1:03:45]}  cxd5 {[%clk 1:30:26]} 12. dxe5 {[%clk 1:04:01]}  Nxe5 {[%clk 1:30:49]} 13. Nxe5 {[%clk 1:01:27]}  Bxe5 {[%clk 1:31:04]} 14. Rc1 {[%clk 0:58:11]}  Bb8 {[%clk 1:19:00]} 15. Ne2 {[%clk 0:58:34]}  Qd6 {[%clk 1:14:24]} 16. Ng3 {[%clk 0:38:47]}  Bd7 {[%clk 1:07:40]} 17. Bc3 {[%clk 0:37:42]}  Re8 {[%clk 0:59:57]} 18. Bxf6 {[%clk 0:30:31]}  Qxf6 {[%clk 1:00:10]} 19. Qh5 {[%clk 0:30:53]}  g6 {[%clk 1:00:24]} 20. Qxd5 {[%clk 0:30:45]}  Bc6 {[%clk 1:00:13]} 21. Ne4 {[%clk 0:24:06]}  Qe7 {[%clk 0:39:38]} 22. Rxc6 {[%clk 0:24:10]}  bxc6 {[%clk 0:39:56]} 23. Qxc6 {[%clk 0:24:30]}  Rd8 {[%clk 0:34:56]} 24. Bc4 {[%clk 0:06:55]}  Kg7 {[%clk 0:28:48]} 25. f4 {[%clk 0:06:00]}  Ra7 {[%clk 0:27:09]} 26. f5 {[%clk 0:04:00]}  Qe5 {[%clk 0:19:03]} 27. fxg6 {[%clk 0:03:38]}  hxg6 {[%clk 0:18:19]} 28. Qf6+ {[%clk 0:03:53]}  Qxf6 {[%clk 0:18:34]} 29. Nxf6 {[%clk 0:04:15]}  Rd2 {[%clk 0:15:48]} 30. a4 {[%clk 0:04:13]}  a5 {[%clk 0:15:30]} 31. Ne4 {[%clk 0:03:43]}  Rc2 {[%clk 0:14:28]} 32. Ng5 {[%clk 0:02:44]}  Re7 {[%clk 0:13:16]} 33. e4 {[%clk 0:02:06]}  Ba7+ {[%clk 0:12:27]} 34. Kh1 {[%clk 0:01:45]}  Be3 {[%clk 0:07:56]} 35. Nf3 {[%clk 0:01:58]}  Rc7 {[%clk 0:06:10]} 36. Bd5 {[%clk 0:01:08]}  Rc1 {[%clk 0:06:14]} 37. Nh2 {[%clk 0:00:46]}  R7c3 {[%clk 0:04:12]} 38. g3 {[%clk 0:00:39]}  Bd4 {[%clk 0:03:03]} 39. Bc4 {[%clk 0:00:56]}  Be5 {[%clk 0:02:37]} 40. Rxc1 {[%clk 0:00:44]}  Rxc1+ {[%clk 0:03:02]} 41. Nf1 {[%clk 0:00:33]}  Bxg3 {[%clk 0:03:09]} 42. Kg2 {[%clk 0:00:49]}  Be5 {[%clk 0:00:52]} 43. Kf3 {[%clk 0:27:45]}  Rc3+ {[%clk 0:25:45]} 44. Kg4 {[%clk 0:28:10]}  f6 {[%clk 0:24:33]} 45. Bd5 {[%clk 0:27:33]}  Kh6 {[%clk 0:23:22]} 46. Bc4 {[%clk 0:26:13]}  Bc7 {[%clk 0:22:11]} 47. Bd5 {[%clk 0:25:49]}  Rc2 {[%clk 0:20:34]} 48. Kf3 {[%clk 0:24:47]}  Bb6 {[%clk 0:19:33]} 49. Bc4 {[%clk 0:25:02]}  Kg5 {[%clk 0:18:48]} 0-1


[Site "http://www.chessbomb.com"]

[Event "World Junior Chess Championship U20 2022"]
[White "Utsab, Chatterjee"]
[Black "Nogerbek, Kazybek"]
[WhiteFideId "46609148"]
[BlackFideId "13710427"]
[WhiteElo "2345"]
[BlackElo "2467"]
[Result "0-1"]
[Round "05"]
[TimeControl "5400+30"]
[Date "2022.10.15"]
[WhiteClock "0:05:59"]
[BlackClock "0:12:56"]

1. e4 {[%clk 1:28:14]}  e5 {[%clk 1:30:25]} 2. Nf3 {[%clk 1:28:27]}  Nc6 {[%clk 1:30:40]} 3. Bb5 {[%clk 1:28:49]}  a6 {[%clk 1:30:38]} 4. Ba4 {[%clk 1:29:14]}  Nf6 {[%clk 1:30:54]} 5. d3 {[%clk 1:29:39]}  d6 {[%clk 1:30:45]} 6. c3 {[%clk 1:30:05]}  g6 {[%clk 1:30:53]} 7. Nbd2 {[%clk 1:30:00]}  Bg7 {[%clk 1:30:33]} 8. O-O {[%clk 1:30:18]}  O-O {[%clk 1:30:52]} 9. Re1 {[%clk 1:30:43]}  Nb8 {[%clk 1:30:17]} 10. d4 {[%clk 1:28:30]}  Nbd7 {[%clk 1:29:35]} 11. Nf1 {[%clk 1:28:16]}  b5 {[%clk 1:28:48]} 12. Bc2 {[%clk 1:27:12]}  Bb7 {[%clk 1:27:23]} 13. Ng3 {[%clk 1:27:15]}  Re8 {[%clk 1:24:41]} 14. a4 {[%clk 1:18:12]}  c6 {[%clk 1:17:30]} 15. h3 {[%clk 1:05:29]}  Qc7 {[%clk 1:14:57]} 16. Be3 {[%clk 0:46:25]}  Nb6 {[%clk 1:08:34]} 17. dxe5 {[%clk 0:44:23]}  dxe5 {[%clk 1:08:49]} 18. Nd2 {[%clk 0:44:50]}  c5 {[%clk 1:07:59]} 19. a5 {[%clk 0:39:45]}  Nbd7 {[%clk 1:06:09]} 20. b4 {[%clk 0:35:08]}  Rac8 {[%clk 1:02:56]} 21. Ra2 {[%clk 0:33:33]}  cxb4 {[%clk 0:53:46]} 22. cxb4 {[%clk 0:34:01]}  Bf8 {[%clk 0:53:54]} 23. Qb1 {[%clk 0:32:48]}  Nb8 {[%clk 0:53:53]} 24. Rc1 {[%clk 0:32:00]}  Nc6 {[%clk 0:53:05]} 25. Rb2 {[%clk 0:27:15]}  Nd4 {[%clk 0:41:39]} 26. Nb3 {[%clk 0:24:48]}  Ne6 {[%clk 0:38:36]} 27. Bd3 {[%clk 0:17:14]}  Qb8 {[%clk 0:37:56]} 28. Nd2 {[%clk 0:16:03]}  Rxc1+ {[%clk 0:32:12]} 29. Qxc1 {[%clk 0:16:31]}  Rc8 {[%clk 0:31:25]} 30. Qe1 {[%clk 0:17:00]}  Ne8 {[%clk 0:28:16]} 31. Bb1 {[%clk 0:16:01]}  Nd6 {[%clk 0:25:11]} 32. Ba2 {[%clk 0:16:25]}  Nd4 {[%clk 0:23:09]} 33. Qd1 {[%clk 0:14:21]}  Nc4 {[%clk 0:22:29]} 34. Nxc4 {[%clk 0:13:39]}  bxc4 {[%clk 0:22:47]} 35. Bxd4 {[%clk 0:13:59]}  exd4 {[%clk 0:22:55]} 36. Rc2 {[%clk 0:14:18]}  c3 {[%clk 0:17:41]} 37. Qxd4 {[%clk 0:14:06]}  Qd6 {[%clk 0:18:03]} 38. Bd5 {[%clk 0:08:34]}  Bxd5 {[%clk 0:17:50]} 39. exd5 {[%clk 0:09:03]}  Qxb4 {[%clk 0:18:01]} 40. Qd3 {[%clk 0:04:10]}  Qxa5 {[%clk 0:16:04]} 41. Ne4 {[%clk 0:02:30]}  Bg7 {[%clk 0:15:35]} 42. g3 {[%clk 0:25:55]}  Qb5 {[%clk 0:42:32]} 43. Qd1 {[%clk 0:25:58]}  Qb4 {[%clk 0:42:27]} 44. Qd3 {[%clk 0:25:01]}  Qb5 {[%clk 0:37:01]} 45. Qd1 {[%clk 0:25:16]}  Rd8 {[%clk 0:37:07]} 46. d6 {[%clk 0:23:37]}  Qc6 {[%clk 0:35:33]} 47. Qd3 {[%clk 0:24:02]}  h6 {[%clk 0:32:19]} 48. Nxc3 {[%clk 0:20:56]}  Qxd6 {[%clk 0:30:12]} 49. Qc4 {[%clk 0:19:26]}  a5 {[%clk 0:29:08]} 50. Ne4 {[%clk 0:18:33]}  Qb4 {[%clk 0:28:35]} 51. Qc6 {[%clk 0:17:56]}  a4 {[%clk 0:27:23]} 52. Kh2 {[%clk 0:16:35]}  a3 {[%clk 0:27:05]} 53. Re2 {[%clk 0:16:44]}  Qe7 {[%clk 0:26:02]} 54. h4 {[%clk 0:14:35]}  Bb2 {[%clk 0:20:17]} 55. Qa6 {[%clk 0:14:15]}  Qe6 {[%clk 0:19:27]} 56. Qa5 {[%clk 0:14:39]}  Qd5 {[%clk 0:18:36]} 57. Qb6 {[%clk 0:13:19]}  Qd4 {[%clk 0:17:10]} 58. Qa5 {[%clk 0:11:44]}  Rc8 {[%clk 0:15:47]} 59. h5 {[%clk 0:05:52]}  Qe5 {[%clk 0:15:31]} 60. Qa6 {[%clk 0:05:41]}  Qxh5+ {[%clk 0:15:12]} 61. Kg2 {[%clk 0:05:59]}  Rc1 {[%clk 0:12:56]} 0-1


[Site "http://www.chessbomb.com"]

[Event "World Junior Chess Championship U20 2022"]
[White "Lux, Hugo de Melo"]
[Black "Prraneeth, Vuppala"]
[WhiteFideId "2138298"]
[BlackFideId "46622373"]
[WhiteElo "2309"]
[BlackElo "2451"]
[Result "0-1"]
[Round "05"]
[TimeControl "5400+30"]
[Date "2022.10.15"]
[WhiteClock "0:01:52"]
[BlackClock "0:02:37"]

1. e4 {[%clk 1:27:53]}  c5 {[%clk 1:30:47]} 2. Nc3 {[%clk 1:27:27]}  d6 {[%clk 1:30:56]} 3. f4 {[%clk 1:26:17]}  g6 {[%clk 1:31:06]} 4. Nf3 {[%clk 1:26:43]}  Bg7 {[%clk 1:31:29]} 5. Bc4 {[%clk 1:27:10]}  Nc6 {[%clk 1:31:11]} 6. O-O {[%clk 1:27:32]}  e6 {[%clk 1:30:34]} 7. d4 {[%clk 1:26:11]}  cxd4 {[%clk 1:29:26]} 8. Nb5 {[%clk 1:26:36]}  a6 {[%clk 1:29:17]} 9. Nbxd4 {[%clk 1:27:00]}  Nxd4 {[%clk 1:29:34]} 10. Nxd4 {[%clk 1:27:28]}  Nf6 {[%clk 1:29:35]} 11. f5 {[%clk 1:27:53]}  gxf5 {[%clk 1:27:02]} 12. exf5 {[%clk 1:27:29]}  e5 {[%clk 1:27:19]} 13. Nf3 {[%clk 1:27:34]}  Qc7 {[%clk 1:25:41]} 14. Bb3 {[%clk 1:27:54]}  Bd7 {[%clk 1:25:25]} 15. Qe2 {[%clk 1:28:08]}  Rg8 {[%clk 1:24:43]} 16. Ng5 {[%clk 1:05:40]}  Bb5 {[%clk 1:22:00]} 17. c4 {[%clk 1:03:58]}  Bc6 {[%clk 1:21:58]} 18. c5 {[%clk 1:03:35]}  d5 {[%clk 1:21:58]} 19. Bf4 {[%clk 0:53:06]}  Nd7 {[%clk 1:21:20]} 20. Qh5 {[%clk 0:26:39]}  O-O-O {[%clk 0:54:09]} 21. Bg3 {[%clk 0:22:26]}  Nf6 {[%clk 0:35:18]} 22. Qh4 {[%clk 0:13:32]}  h6 {[%clk 0:30:00]} 23. Nf3 {[%clk 0:13:36]}  Ne4 {[%clk 0:28:44]} 24. Bc2 {[%clk 0:11:51]}  Bf6 {[%clk 0:21:38]} 25. Qxh6 {[%clk 0:11:13]}  Rh8 {[%clk 0:19:43]} 26. Qe3 {[%clk 0:09:42]}  Nxg3 {[%clk 0:17:58]} 27. hxg3 {[%clk 0:10:00]}  e4 {[%clk 0:11:38]} 28. Nd4 {[%clk 0:07:47]}  Rdg8 {[%clk 0:11:56]} 29. Nxc6 {[%clk 0:06:06]}  bxc6 {[%clk 0:11:35]} 30. Rf4 {[%clk 0:03:02]}  Be5 {[%clk 0:09:13]} 31. Raf1 {[%clk 0:03:00]}  f6 {[%clk 0:06:51]} 32. Qa3 {[%clk 0:03:29]}  Bd4+ {[%clk 0:05:51]} 33. R1f2 {[%clk 0:03:44]}  a5 {[%clk 0:05:11]} 34. b4 {[%clk 0:02:19]}  axb4 {[%clk 0:01:45]} 35. Qa4 {[%clk 0:02:48]}  Bxc5 {[%clk 0:01:35]} 36. Bb3 {[%clk 0:02:01]}  Kb7 {[%clk 0:01:23]} 37. Bxd5 {[%clk 0:01:27]}  cxd5 {[%clk 0:01:30]} 38. Kf1 {[%clk 0:00:45]}  Rh1+ {[%clk 0:01:24]} 39. Ke2 {[%clk 0:01:09]}  Bxf2 {[%clk 0:01:33]} 40. Qb5+ {[%clk 0:01:11]}  Bb6 {[%clk 0:01:55]} 41. Qxd5+ {[%clk 0:01:37]}  Ka7 {[%clk 0:02:13]} 42. Qxg8 {[%clk 0:01:52]}  Qc2# {[%clk 0:02:37]} 0-1


[Site "http://www.chessbomb.com"]

[Event "World Junior Chess Championship U20 2022"]
[White "Stoyanov, Tsvetan"]
[Black "Gatineau, Yovann"]
[WhiteFideId "2917173"]
[BlackFideId "26028999"]
[WhiteElo "2449"]
[BlackElo "2375"]
[Result "1-0"]
[Round "05"]
[TimeControl "5400+30"]
[Date "2022.10.15"]
[WhiteClock "0:03:55"]
[BlackClock "0:01:32"]

1. e4 {[%clk 1:30:48]}  c6 {[%clk 1:27:13]} 2. d4 {[%clk 1:30:59]}  d5 {[%clk 1:27:36]} 3. Nc3 {[%clk 1:31:16]}  dxe4 {[%clk 1:27:11]} 4. Nxe4 {[%clk 1:31:44]}  Nf6 {[%clk 1:27:30]} 5. Nxf6+ {[%clk 1:31:57]}  exf6 {[%clk 1:27:53]} 6. c3 {[%clk 1:32:20]}  Bd6 {[%clk 1:28:15]} 7. Bd3 {[%clk 1:32:35]}  Na6 {[%clk 1:26:40]} 8. Ne2 {[%clk 1:32:52]}  Kf8 {[%clk 1:26:34]} 9. Qc2 {[%clk 1:31:08]}  h5 {[%clk 1:26:33]} 10. O-O {[%clk 1:29:14]}  g6 {[%clk 1:26:51]} 11. Be3 {[%clk 1:20:12]}  Kg7 {[%clk 1:27:13]} 12. Rad1 {[%clk 1:20:05]}  Re8 {[%clk 1:27:04]} 13. Qd2 {[%clk 1:09:28]}  Be6 {[%clk 1:22:31]} 14. b3 {[%clk 1:02:28]}  Qd7 {[%clk 1:20:46]} 15. Bh6+ {[%clk 0:49:02]}  Kg8 {[%clk 1:18:17]} 16. Bf4 {[%clk 0:48:18]}  Nc7 {[%clk 1:06:50]} 17. c4 {[%clk 0:40:16]}  Rad8 {[%clk 0:58:59]} 18. Bxd6 {[%clk 0:37:23]}  Qxd6 {[%clk 0:59:20]} 19. h3 {[%clk 0:37:30]}  Kg7 {[%clk 0:56:35]} 20. Qa5 {[%clk 0:33:59]}  a6 {[%clk 0:44:44]} 21. Nc3 {[%clk 0:23:06]}  Re7 {[%clk 0:36:37]} 22. Ne4 {[%clk 0:19:20]}  Qf4 {[%clk 0:35:44]} 23. Bb1 {[%clk 0:14:42]}  Bf5 {[%clk 0:29:02]} 24. g3 {[%clk 0:14:11]}  Qh6 {[%clk 0:28:54]} 25. d5 {[%clk 0:11:30]}  cxd5 {[%clk 0:20:16]} 26. cxd5 {[%clk 0:09:56]}  Bxe4 {[%clk 0:14:06]} 27. d6 {[%clk 0:10:25]}  Rxd6 {[%clk 0:12:48]} 28. Rxd6 {[%clk 0:10:53]}  Bc6 {[%clk 0:10:49]} 29. Qd2 {[%clk 0:06:47]}  Qxd2 {[%clk 0:06:01]} 30. Rxd2 {[%clk 0:07:15]}  h4 {[%clk 0:06:22]} 31. gxh4 {[%clk 0:04:19]}  Nd5 {[%clk 0:04:57]} 32. Rd4 {[%clk 0:01:52]}  Re2 {[%clk 0:04:44]} 33. Be4 {[%clk 0:01:39]}  Ne7 {[%clk 0:03:50]} 34. Bxc6 {[%clk 0:02:06]}  Nxc6 {[%clk 0:04:18]} 35. Rd7 {[%clk 0:02:02]}  Ne5 {[%clk 0:04:11]} 36. Rxb7 {[%clk 0:02:19]}  Nf3+ {[%clk 0:04:08]} 37. Kh1 {[%clk 0:01:08]}  Rxa2 {[%clk 0:01:59]} 38. h5 {[%clk 0:01:20]}  Nd2 {[%clk 0:01:00]} 39. Rg1 {[%clk 0:00:50]}  g5 {[%clk 0:00:34]} 40. Rg4 {[%clk 0:00:34]}  Nf3 {[%clk 0:00:35]} 41. Kg2 {[%clk 0:20:51]}  Ne1+ {[%clk 0:23:36]} 42. Kg3 {[%clk 0:20:28]}  Nd3 {[%clk 0:16:10]} 43. Ra4 {[%clk 0:07:22]}  Rb2 {[%clk 0:15:33]} 44. Rxa6 {[%clk 0:02:17]}  Nc5 {[%clk 0:14:07]} 45. h6+ {[%clk 0:02:45]}  Kg6 {[%clk 0:08:27]} 46. h7 {[%clk 0:03:11]}  Kxh7 {[%clk 0:08:19]} 47. Rxf7+ {[%clk 0:03:39]}  Kg8 {[%clk 0:08:38]} 48. Raa7 {[%clk 0:03:49]}  Rxb3+ {[%clk 0:06:07]} 49. Kg4 {[%clk 0:01:40]}  Rb4+ {[%clk 0:01:36]} 50. Kf5 {[%clk 0:00:46]}  Nd3 {[%clk 0:02:02]} 51. Rfc7 {[%clk 0:00:37]}  Rf4+ {[%clk 0:01:57]} 52. Ke6 {[%clk 0:01:06]}  Re4+ {[%clk 0:01:43]} 53. Kxf6 {[%clk 0:01:34]}  Rf4+ {[%clk 0:01:33]} 54. Kxg5 {[%clk 0:01:46]}  Rxf2 {[%clk 0:01:29]} 55. Ra8+ {[%clk 0:02:03]}  Rf8 {[%clk 0:01:57]} 56. Rxf8+ {[%clk 0:02:28]}  Kxf8 {[%clk 0:02:27]} 57. Kf6 {[%clk 0:02:48]}  Kg8 {[%clk 0:02:35]} 58. Rc4 {[%clk 0:03:08]}  Ne1 {[%clk 0:00:35]} 59. Kg6 {[%clk 0:03:01]}  Kf8 {[%clk 0:00:41]} 60. Rf4+ {[%clk 0:03:30]}  Kg8 {[%clk 0:01:04]} 61. Re4 {[%clk 0:03:55]}  Nc2 {[%clk 0:01:32]} 62. Re8# {[%clk 0:03:55]} 1-0


[Site "http://www.chessbomb.com"]

[Event "World Junior Chess Championship U20 2022"]
[White "Gurel, Ediz"]
[Black "Vestby-Ellingsen, Mads"]
[WhiteFideId "44507356"]
[BlackFideId "1520857"]
[WhiteElo "2445"]
[BlackElo "2365"]
[Result "1/2-1/2"]
[Round "05"]
[TimeControl "5400+30"]
[Date "2022.10.15"]
[WhiteClock "0:15:40"]
[BlackClock "0:39:03"]

1. e4 {[%clk 1:30:41]}  e5 {[%clk 1:30:15]} 2. Nf3 {[%clk 1:31:03]}  Nf6 {[%clk 1:30:29]} 3. Nxe5 {[%clk 1:30:23]}  Nxe4 {[%clk 1:30:44]} 4. Qe2 {[%clk 1:29:11]}  Qe7 {[%clk 1:31:00]} 5. Qxe4 {[%clk 1:26:02]}  d6 {[%clk 1:31:17]} 6. d4 {[%clk 1:24:39]}  dxe5 {[%clk 1:31:33]} 7. dxe5 {[%clk 1:20:08]}  Nc6 {[%clk 1:31:46]} 8. Nc3 {[%clk 1:20:25]}  Qxe5 {[%clk 1:32:00]} 9. Qxe5+ {[%clk 1:17:15]}  Nxe5 {[%clk 1:32:22]} 10. Bf4 {[%clk 1:11:31]}  Bd6 {[%clk 1:31:47]} 11. Bg3 {[%clk 1:11:55]}  h5 {[%clk 1:31:29]} 12. O-O-O {[%clk 1:03:44]}  f6 {[%clk 1:31:43]} 13. Nb5 {[%clk 0:53:45]}  h4 {[%clk 1:31:40]} 14. Nxd6+ {[%clk 0:54:12]}  cxd6 {[%clk 1:31:59]} 15. Bf4 {[%clk 0:53:42]}  g5 {[%clk 1:32:12]} 16. Be3 {[%clk 0:52:41]}  Ke7 {[%clk 1:32:28]} 17. h3 {[%clk 0:44:28]}  Bf5 {[%clk 1:32:39]} 18. Be2 {[%clk 0:42:36]}  Rhc8 {[%clk 1:25:59]} 19. Rd2 {[%clk 0:41:43]}  Nc4 {[%clk 1:25:53]} 20. Bxc4 {[%clk 0:42:10]}  Rxc4 {[%clk 1:26:15]} 21. b3 {[%clk 0:41:29]}  Rc6 {[%clk 1:22:36]} 22. Kb2 {[%clk 0:39:08]}  b5 {[%clk 1:10:29]} 23. c3 {[%clk 0:36:12]}  a6 {[%clk 1:00:39]} 24. Re1 {[%clk 0:27:27]}  Kf7 {[%clk 1:00:38]} 25. Bd4 {[%clk 0:27:10]}  d5 {[%clk 0:46:35]} 26. Rde2 {[%clk 0:24:29]}  Re6 {[%clk 0:46:32]} 27. Rxe6 {[%clk 0:24:35]}  Bxe6 {[%clk 0:46:54]} 28. Ka3 {[%clk 0:22:37]}  a5 {[%clk 0:45:57]} 29. Kb2 {[%clk 0:20:53]}  Bf5 {[%clk 0:44:25]} 30. f3 {[%clk 0:18:29]}  Ra6 {[%clk 0:40:49]} 31. Kc1 {[%clk 0:15:56]}  Re6 {[%clk 0:39:03]} 32. Rxe6 {[%clk 0:15:40]}  Kxe6 {[%clk 0:39:03]} 1/2-1/2


[Site "http://www.chessbomb.com"]

[Event "World Junior Chess Championship U20 2022"]
[White "Baenziger, Fabian"]
[Black "Manish, Anto Cristiano F"]
[WhiteFideId "1330110"]
[BlackFideId "25095927"]
[WhiteElo "2439"]
[BlackElo "2332"]
[Result "1/2-1/2"]
[Round "05"]
[TimeControl "5400+30"]
[Date "2022.10.15"]
[WhiteClock "0:24:29"]
[BlackClock "0:31:25"]

1. d4 {[%clk 1:30:55]}  Nf6 {[%clk 1:30:40]} 2. c4 {[%clk 1:31:16]}  e6 {[%clk 1:30:48]} 3. Nf3 {[%clk 1:31:17]}  d5 {[%clk 1:31:02]} 4. g3 {[%clk 1:31:14]}  Be7 {[%clk 1:31:13]} 5. Bg2 {[%clk 1:31:33]}  O-O {[%clk 1:31:21]} 6. O-O {[%clk 1:31:11]}  dxc4 {[%clk 1:31:18]} 7. Qc2 {[%clk 1:30:23]}  a6 {[%clk 1:31:01]} 8. a4 {[%clk 1:30:28]}  Bd7 {[%clk 1:30:35]} 9. Qxc4 {[%clk 1:29:17]}  Bc6 {[%clk 1:29:49]} 10. Bg5 {[%clk 1:28:58]}  Nbd7 {[%clk 1:28:27]} 11. Nc3 {[%clk 1:27:48]}  h6 {[%clk 1:25:27]} 12. Bxf6 {[%clk 1:27:34]}  Nxf6 {[%clk 1:25:22]} 13. Rfd1 {[%clk 1:27:43]}  Rc8 {[%clk 1:23:54]} 14. Rac1 {[%clk 1:20:36]}  Qe8 {[%clk 1:19:28]} 15. Ne5 {[%clk 1:13:39]}  Bxg2 {[%clk 1:14:19]} 16. Kxg2 {[%clk 1:14:02]}  c5 {[%clk 1:12:58]} 17. Qb3 {[%clk 1:03:07]}  cxd4 {[%clk 1:04:41]} 18. Rxd4 {[%clk 1:03:31]}  Rc7 {[%clk 0:59:47]} 19. Rc4 {[%clk 0:51:33]}  Qb8 {[%clk 0:57:00]} 20. Rd1 {[%clk 0:39:46]}  Rd8 {[%clk 0:53:34]} 21. Rxd8+ {[%clk 0:36:22]}  Qxd8 {[%clk 0:51:04]} 22. Qb6 {[%clk 0:33:50]}  Rxc4 {[%clk 0:33:45]} 23. Qxd8+ {[%clk 0:33:14]}  Bxd8 {[%clk 0:31:33]} 24. Nxc4 {[%clk 0:33:38]}  Bc7 {[%clk 0:31:51]} 25. Kf3 {[%clk 0:30:48]}  Kf8 {[%clk 0:32:06]} 26. Ne4 {[%clk 0:28:06]}  Nxe4 {[%clk 0:30:41]} 27. Kxe4 {[%clk 0:28:29]}  Ke7 {[%clk 0:31:04]} 28. b4 {[%clk 0:26:19]}  b5 {[%clk 0:30:18]} 29. axb5 {[%clk 0:26:00]}  axb5 {[%clk 0:30:41]} 30. Na3 {[%clk 0:25:28]}  Bd6 {[%clk 0:31:03]} 31. Nxb5 {[%clk 0:24:24]}  Bxb4 {[%clk 0:31:25]} 32. Kf3 {[%clk 0:24:29]} 1/2-1/2


[Site "http://www.chessbomb.com"]

[Event "World Junior Chess Championship U20 2022"]
[White "Ghimpu, Samuel-Timotei"]
[Black "Carlo, Emanuele"]
[WhiteFideId "1238175"]
[BlackFideId "2825380"]
[WhiteElo "2434"]
[BlackElo "2306"]
[Result "1-0"]
[Round "05"]
[TimeControl "5400+30"]
[Date "2022.10.15"]
[WhiteClock "0:05:27"]
[BlackClock "0:01:34"]

1. d4 {[%clk 1:29:30]}  Nf6 {[%clk 1:30:53]} 2. c4 {[%clk 1:29:49]}  e6 {[%clk 1:31:12]} 3. Nc3 {[%clk 1:30:08]}  d5 {[%clk 1:31:37]} 4. cxd5 {[%clk 1:29:08]}  Nxd5 {[%clk 1:31:42]} 5. e4 {[%clk 1:23:58]}  Nxc3 {[%clk 1:32:07]} 6. bxc3 {[%clk 1:24:22]}  c5 {[%clk 1:32:16]} 7. Rb1 {[%clk 1:23:58]}  Be7 {[%clk 1:32:07]} 8. Nf3 {[%clk 1:22:59]}  O-O {[%clk 1:32:12]} 9. h4 {[%clk 1:23:21]}  Nc6 {[%clk 1:27:50]} 10. Be2 {[%clk 1:17:49]}  b6 {[%clk 1:22:59]} 11. h5 {[%clk 1:16:31]}  Bb7 {[%clk 1:07:07]} 12. h6 {[%clk 1:16:19]}  g6 {[%clk 1:05:35]} 13. O-O {[%clk 1:16:42]}  Na5 {[%clk 0:57:56]} 14. Bd3 {[%clk 1:02:57]}  Rc8 {[%clk 0:57:39]} 15. Qe2 {[%clk 1:02:58]}  Qc7 {[%clk 0:57:05]} 16. Be3 {[%clk 0:58:33]}  Bd6 {[%clk 0:50:53]} 17. Rbc1 {[%clk 0:52:08]}  Bf4 {[%clk 0:49:00]} 18. e5 {[%clk 0:51:30]}  Bxe3 {[%clk 0:28:15]} 19. fxe3 {[%clk 0:51:39]}  Bxf3 {[%clk 0:40:03]} 20. Qxf3 {[%clk 0:49:26]}  Qe7 {[%clk 0:40:32]} 21. Qg3 {[%clk 0:47:39]}  Nc6 {[%clk 0:36:02]} 22. a4 {[%clk 0:37:52]}  Nb8 {[%clk 0:28:15]} 23. Ra1 {[%clk 0:32:00]}  c4 {[%clk 0:24:57]} 24. Be4 {[%clk 0:31:21]}  a5 {[%clk 0:20:20]} 25. Rab1 {[%clk 0:30:38]}  Qc7 {[%clk 0:20:24]} 26. Qf3 {[%clk 0:29:34]}  Nd7 {[%clk 0:19:26]} 27. Bb7 {[%clk 0:29:25]}  Rb8 {[%clk 0:19:42]} 28. Bc6 {[%clk 0:26:38]}  f5 {[%clk 0:20:05]} 29. Bb5 {[%clk 0:26:54]}  Rf7 {[%clk 0:13:34]} 30. Qe2 {[%clk 0:25:06]}  Nf8 {[%clk 0:12:55]} 31. Bxc4 {[%clk 0:22:50]}  Qe7 {[%clk 0:10:32]} 32. d5 {[%clk 0:17:46]}  Qa3 {[%clk 0:08:06]} 33. dxe6 {[%clk 0:16:32]}  Re7 {[%clk 0:08:18]} 34. Qd3 {[%clk 0:16:44]}  Rc8 {[%clk 0:07:18]} 35. Qd6 {[%clk 0:14:22]}  Qc5 {[%clk 0:07:47]} 36. Kf2 {[%clk 0:03:49]}  f4 {[%clk 0:05:46]} 37. Qxc5 {[%clk 0:04:02]}  Rxc5 {[%clk 0:06:12]} 38. Ba2 {[%clk 0:04:27]}  Rxc3 {[%clk 0:06:13]} 39. Rfc1 {[%clk 0:04:54]}  Ra3 {[%clk 0:02:18]} 40. Bd5 {[%clk 0:05:16]}  Rd3 {[%clk 0:01:34]} 41. e4 {[%clk 0:05:27]} 1-0


[Site "http://www.chessbomb.com"]

[Event "World Junior Chess Championship U20 2022"]
[White "Sokolovsky, Yahli"]
[Black "Dauw, Sterre"]
[WhiteFideId "2820242"]
[BlackFideId "248886"]
[WhiteElo "2416"]
[BlackElo "2287"]
[Result "1-0"]
[Round "05"]
[TimeControl "5400+30"]
[Date "2022.10.15"]
[WhiteClock "0:05:43"]
[BlackClock "0:24:19"]

1. e4 {[%clk 1:29:04]}  c5 {[%clk 1:30:53]} 2. Nf3 {[%clk 1:29:27]}  d6 {[%clk 1:31:18]} 3. d4 {[%clk 1:29:52]}  cxd4 {[%clk 1:31:45]} 4. Nxd4 {[%clk 1:30:17]}  Nf6 {[%clk 1:32:08]} 5. Nc3 {[%clk 1:30:43]}  Nc6 {[%clk 1:32:34]} 6. Bg5 {[%clk 1:30:56]}  e6 {[%clk 1:32:56]} 7. Qd3 {[%clk 1:31:19]}  a6 {[%clk 1:33:22]} 8. Nxc6 {[%clk 1:30:52]}  bxc6 {[%clk 1:33:47]} 9. O-O-O {[%clk 1:30:39]}  Qa5 {[%clk 1:30:32]} 10. Qg3 {[%clk 1:26:11]}  Nh5 {[%clk 1:21:58]} 11. Qh4 {[%clk 1:14:55]}  h6 {[%clk 1:21:43]} 12. Bd2 {[%clk 1:15:02]}  Be7 {[%clk 1:15:16]} 13. Qg4 {[%clk 1:14:44]}  g6 {[%clk 1:15:08]} 14. Bc4 {[%clk 1:10:01]}  Qc5 {[%clk 1:10:55]} 15. Qe2 {[%clk 1:01:31]}  d5 {[%clk 1:11:11]} 16. exd5 {[%clk 0:55:30]}  cxd5 {[%clk 1:10:19]} 17. Bb3 {[%clk 0:55:43]}  Kf8 {[%clk 1:05:22]} 18. Rhe1 {[%clk 0:52:16]}  Bb7 {[%clk 0:59:12]} 19. Qf3 {[%clk 0:39:14]}  Kg7 {[%clk 0:54:14]} 20. Kb1 {[%clk 0:28:38]}  Qc7 {[%clk 0:40:25]} 21. Ne2 {[%clk 0:24:14]}  Nf6 {[%clk 0:37:44]} 22. Nf4 {[%clk 0:14:23]}  d4 {[%clk 0:34:59]} 23. Qg3 {[%clk 0:13:58]}  e5 {[%clk 0:29:09]} 24. Bxf7 {[%clk 0:08:17]}  exf4 {[%clk 0:28:55]} 25. Bxf4 {[%clk 0:08:36]}  Qc5 {[%clk 0:25:11]} 26. Qxg6+ {[%clk 0:06:24]}  Kf8 {[%clk 0:25:36]} 27. Re5 {[%clk 0:05:55]}  Be4 {[%clk 0:25:49]} 28. Rxe4 {[%clk 0:05:56]}  Rc8 {[%clk 0:24:31]} 29. Rexd4 {[%clk 0:05:56]}  Rh7 {[%clk 0:24:19]} 30. Be6 {[%clk 0:05:43]} 1-0


[Site "http://www.chessbomb.com"]